Cogmind - Beta 14 *** ADVENTURER MODE // 2024.10.15 @ 15:33:55 Player: 7604 Result: Self-destructed Performance ------------- Evolutions (4) 2000 Regions Visited (13) 2600 Robots Destroyed (80) 400 Value Destroyed (3497) 3497 Prototype IDs (37) 740 Alien Tech Used (0) 0 Bonus (1832) 1832 TOTAL SCORE: 11069 Bonus ------- High Alert Combat Kills 61 Follower Combat Kills 493 Entered Garrisons 200 Used RIF Installer 500 Aligned with FarCom 300 Met Data Miner 300 Friendly Fire -22 Cogmind --------- Core Integrity 633/850 Matter 285/300 Energy 340/340 System Corruption 0% Temperature Cool (0) Movement Walking (105) Location -6/Factory Parts ------- > --- POWER (2) -------- Improved Deuterium Engine Light Angular Momentum Engine > --- PROPULSION (4) --- Flexi-carbon Leg Improved VSS Leg > --- UTILITY (7) ------ Advanced Heat Sink Large Storage Unit Advanced Weight Redist. System > --- WEAPON (2) ------- Longsword +1 > --- INVENTORY (15) --- Micro Fission Core Small Storage Unit Compact Battery (200) Transmission Jammer Advanced ECM Suite Reaction Control System Medium Reactive Plating Hacking Suite Improved Spread Laser Heavy Flak Cannon Carbide Saw Peak State ------------ > --- POWER ------------ Micro Nuclear Core > --- PROPULSION ------- Improved Carbon-fiber Leg Improved Carbon-fiber Leg Improved Carbon-fiber Leg Improved Titanium Leg > --- UTILITY ---------- Improved Heat Sink Improved Heat Sink Large Storage Unit Improved Light Armor Plating System Shield Relay Coupler [Hunter] > --- WEAPON ----------- Molecular Deconstructor > --- INVENTORY -------- Light Nuclear Core Titanium Leg Improved Carbon-fiber Leg Small Storage Unit Compact Battery Advanced Weight Redist. System Structural Scanner Reaction Control System Medium Reactive Plating Relay Coupler [Specialist] Improved Spread Laser Improved Datajack Longsword +1 [Rating: 60] Favorites ----------- Power Micro Nuclear Core Engine Improved Ion Engine Power Core Micro Nuclear Core Propulsion Improved Carbon-fiber Leg Treads Light Treads Leg Improved Carbon-fiber Leg Utility Large Storage Unit Device Improved Heat Sink Storage Large Storage Unit Hackware System Shield Protection Medium Reactive Plating Weapon Plasma Rifle Energy Gun Plasma Rifle Ballistic Gun Assault Rifle Ballistic Cannon Heavy Flak Cannon Launcher EMP Blaster Special Weapon Molecular Deconstructor Impact Weapon Hammer Slashing Weapon Longsword +1 Special Melee Weapon Improved Datajack Build | -11 -10 -10 -10 -9 -8 -8 -8 -7 -7 -7 -7 -6 -6 ------- Run | Yrd Mat Min Exi Min Mat Gar Mat Fac Low Low Dat Pro Fac Slots Evolved 8 | . . . . . 4 . . 2 . . . . 2 Power 1 | . . . . . . . . . . . . . 1 Propulsion 2 | . . . . . 2 . . . . . . . . Utility 5 | . . . . . 2 . . 2 . . . . 1 Weapon . | . . . . . . . . . . . . . . Parts Attached 138 | 6 2 8 . 1 16 34 17 10 6 7 . 23 8 Power 19 | 1 1 1 . . 2 5 1 1 . . . 4 3 Engine 12 | 1 1 1 . . 1 4 . . . . . 1 3 Core 7 | . . . . . 1 1 1 1 . . . 3 . Reactor . | . . . . . . . . . . . . . . Propulsion 28 | 2 . 3 . . 5 6 5 1 . . . 5 1 Treads 2 | . . . . . . 2 . . . . . . . Leg 26 | 2 . 3 . . 5 4 5 1 . . . 5 1 Wheel . | . . . . . . . . . . . . . . Hover . | . . . . . . . . . . . . . . Flight . | . . . . . . . . . . . . . . Utility 30 | 1 1 . . . . 8 4 3 2 4 . 5 2 Device 15 | . 1 . . . . 6 2 . 1 3 . 1 1 Storage 3 | 1 . . . . . 2 . . . . . . . Processor . | . . . . . . . . . . . . . . Hackware 3 | . . . . . . . . 1 1 . . 1 . Protection 9 | . . . . . . . 2 2 . 1 . 3 1 Artifact . | . . . . . . . . . . . . . . Weapon 61 | 2 . 4 . 1 9 15 7 5 4 3 . 9 2 Energy Gun 26 | . . . . . 4 7 3 3 1 3 . 5 . Energy Cannon . | . . . . . . . . . . . . . . Ballistic Gun 9 | 2 . 2 . . 2 2 . 1 . . . . . Ballistic Cannon 1 | . . . . . . . . . . . . . 1 Launcher 3 | . . 1 . 1 1 . . . . . . . . Special Weapon 1 | . . . . . . . . . . . . 1 . Impact Weapon 1 | . . 1 . . . . . . . . . . . Slashing Weapon 16 | . . . . . 2 6 3 1 2 . . 1 1 Piercing Weapon . | . . . . . . . . . . . . . . Special Melee Weapon 4 | . . . . . . . 1 . 1 . . 2 . Unidentified Prototypes 2 | . . . . . . . . 1 . . . 1 . Corrupted Parts 4 | . . . . . 4 . . . . . . . . System Corruption 11 | . . . . . 11 . . . . . . . . Parts Lost 36 | . . . . . 1 8 2 . 1 1 . 15 8 Power 6 | . . . . . . 1 . . . . . 3 2 Propulsion 14 | . . . . . . 6 . . . . . 7 1 Utility 10 | . . . . . . 1 . . 1 1 . 3 4 Weapon 6 | . . . . . 1 . 2 . . . . 2 1 Highest Loss Streak 10 | . . . . . 1 4 1 . 1 1 . 10 4 To Critical Strikes 1 | . . . . . . . . . . . . 1 . Average Slot Usage (%) 87 | . 99 100 73 75 73 84 92 91 99 98 100 85 62 Engine 4 | . 14 14 14 14 1 6 . . . . . . 6 Core 4 | . . . . . 7 . 9 7 7 7 7 6 1 Treads 1 | . . . . . . 6 . . . . . . . Leg 25 | . 28 28 28 28 29 20 35 30 30 30 30 19 13 Device 12 | . 13 14 14 14 9 21 12 7 7 14 15 7 8 Storage 9 | . 14 14 14 14 9 10 11 7 7 7 7 7 6 Hackware 5 | . . . . . . . . 4 8 15 15 15 8 Protection 6 | . . . . . . . 7 20 20 6 7 12 4 Energy Gun 8 | . . . . . 10 10 14 5 12 14 15 13 5 Ballistic Gun 4 | . 28 27 2 . 2 2 . 2 . . . . . Slashing Weapon 1 | . . . . . 1 5 2 3 . . . . 4 Peak Build Rating 60 | 6 8 10 10 9 21 27 40 48 51 54 52 60 47 Average Rating 30 | 4 7 9 7 7 14 22 32 42 46 49 52 47 42 On Entrance 25 | . 6 8 10 7 9 18 21 38 46 51 52 52 45 Naked Turns . | . . . . . . . . . . . . . . Heaviest Build 65 | 11 16 19 18 17 19 38 53 65 65 42 39 42 51 Greatest Support 74 | 20 20 20 20 20 45 45 71 74 74 74 74 74 59 Greatest Overweight (x) 10 | . . . . . . 6 . . . . . 10 1 Average Overweight (x) . | . . . . . . . . . . . . . . Largest Inventory Capacity 15 | 8 8 8 8 8 8 15 15 15 15 15 15 15 15 Average Capacity 12 | 7 8 8 8 8 8 8 15 15 15 15 15 15 15 Most Carried 15 | 2 7 8 8 8 8 13 15 15 15 15 15 15 11 Average Carried 10 | 1 5 7 8 7 7 7 14 14 15 14 15 10 9 Final Capacity 15 | 8 8 8 8 8 8 15 15 15 15 15 15 15 15 Final Carried 15 | 2 7 8 8 7 8 13 15 15 15 15 15 9 11 Class Distribution -------------------- 34% | Scavenger-Mutant 33% | Mutant 31% | Hacker-Mutant Dominant Class ---------------- Mutant | -10/Materials Mutant | -10/Mines Mutant | -10/Exiles Mutant | -9/Mines Mutant | -8/Materials Scavenger-Mutant | -8/Garrison Mutant | -8/Materials Hacker-Mutant | -7/Factory Hacker-Mutant | -7/Lower Caves Scavenger-Mutant | -7/Lower Caves Hacker-Mutant | -7/Data Miner Hacker-Mutant | -6/Proximity Caves Scavenger-Mutant | -6/Factory Resources | -11 -10 -10 -10 -9 -8 -8 -8 -7 -7 -7 -7 -6 -6 ----------- Run | Yrd Mat Min Exi Min Mat Gar Mat Fac Low Low Dat Pro Fac Matter Collected 1937 | 221 109 177 . . 259 421 203 102 84 70 . 235 56 Remotely . | . . . . . . . . . . . . . . Salvage Created 3047 | . 163 110 . . 316 609 472 198 306 72 . 353 448 Parts 173 | . 20 9 . . 18 34 27 14 18 6 . 12 15 Haulers Intercepted 1 | . . . . . . . 1 . . . . . . Recyclers Shooed 1 | . 1 . . . . . . . . . . . . Parts Field Recycled . | . . . . . . . . . . . . . . Retrieved Matter . | . . . . . . . . . . . . . . Parts Self-Destructed 45 | . . . . . . . . . 16 4 . 25 . Prevented 3 | . . . . . . . . . . . . 3 . Kills | -11 -10 -10 -10 -9 -8 -8 -8 -7 -7 -7 -7 -6 -6 ------- Run | Yrd Mat Min Exi Min Mat Gar Mat Fac Low Low Dat Pro Fac Combat Hostiles Destroyed 69 | . 6 4 . . 8 16 7 5 8 1 . 8 6 Melee 30 | . . . . . . 9 4 4 4 1 . 2 6 Guns 37 | . 6 3 . . 8 6 3 1 4 . . 6 . AOE 1 | . . 1 . . . . . . . . . . . Classes Destroyed 13 | . 3 2 . . 2 1 1 1 1 . . 1 1 Worker 2 | . 1 1 . . . . . . . . . . . Tunneler 1 | . . 1 . . . . . . . . . . . Hauler 1 | . . . . . . . 1 . . . . . . Recycler 1 | . . . . . . . . . . . . . 1 Operator 1 | . . . . . 1 . . . . . . . . Drone 2 | . . . . . . . . . . . . 2 . Watcher 5 | . 2 . . . 1 . 2 . . . . . . Swarmer 22 | . 6 3 . . 4 6 . 2 . . . . 1 Grunt 29 | . . 1 . . 3 4 3 2 6 . . 5 5 Duelist 1 | . . . . . . . . . 1 . . . . Sentry 11 | . . . . . 1 5 4 . . 1 . . . Hunter 3 | . . . . . . 1 . . 1 . . 1 . Programmer 1 | . . . . . . . . 1 . . . . . Best Kill Streak 5 | . 5 3 . . 4 3 4 2 4 1 . 2 5 Combat Bots Only 4 | . 3 3 . . 4 3 4 2 4 1 . 2 4 Max Kills in Single Turn 2 | . 2 2 . . 1 1 1 1 2 1 . 1 1 Gunslinging 1 | . . . . . . . . . 1 . . . . Exploded 1 | . . 1 . . . . . . . . . . . Melee 1 | . . . . . . 1 1 1 1 1 . 1 1 Uniques/NPCs Destroyed . | . . . . . . . . . . . . . . Combat | -11 -10 -10 -10 -9 -8 -8 -8 -7 -7 -7 -7 -6 -6 -------- Run | Yrd Mat Min Exi Min Mat Gar Mat Fac Low Low Dat Pro Fac Hostile Shots Fired 677 | . 11 45 . . 61 125 23 14 80 36 . 176 106 Missed 204 | . 2 16 . . 20 31 7 4 22 14 . 47 41 Damage Taken 5487 | . 68 278 . . 440 823 169 109 692 122 . 1826 960 Core 1102 | . 7 22 . . 61 222 12 12 82 16 . 451 217 Absorbed by Shields . | . . . . . . . . . . . . . . Ignored by Resistances 1623 | . 23 86 . . 128 249 62 50 208 37 . 516 264 Core Remaining (%) 63 | 100 . . . 88 . . 46 . . . . 19 . Volleys Fired 154 | . 15 21 . . 27 31 17 4 13 . . 22 4 Largest 2 | . 2 2 . . 2 2 2 2 2 . . 2 2 Hottest 150 | . 40 53 . . 119 134 134 140 140 . . 150 150 Shots Fired 284 | . 30 39 1 . 51 56 29 6 25 . . 40 7 Gun 278 | . 30 38 1 . 46 56 29 6 25 . . 40 7 Cannon . | . . . . . . . . . . . . . . Launcher 6 | . . 1 . . 5 . . . . . . . . Special . | . . . . . . . . . . . . . . Kinetic 93 | . 30 38 1 . 12 10 . 2 . . . . . Thermal 185 | . . . . . 34 46 29 4 25 . . 40 7 Explosive . | . . . . . . . . . . . . . . Electromagnetic 6 | . . 1 . . 5 . . . . . . . . Robot Hit Streak 21 | . 6 11 . . 9 21 10 4 12 . . 12 19 Robot Miss Streak 11 | . 3 5 . . 2 3 2 2 2 . . 11 1 Penetration Max 1 | . . . . . . 1 . . . . . . . Secondary Targets 6 | . 1 1 . . 1 1 . . 1 . . 1 . Max Gunslinging Chain 1 | . 1 1 . . 1 1 . . 1 . . 1 . Shots Hit Robots 285 | . 17 30 . . 39 62 33 8 40 1 . 29 26 Core Hits 140 | . 11 11 . . 17 18 15 7 25 1 . 23 12 Critical Kills . | . . . . . . . . . . . . . . Critical Parts Destroyed . | . . . . . . . . . . . . . . Critical Strikes 15 | . . . . . 2 4 2 . 3 . . 4 . Burn 7 | . . . . . 2 2 1 . . . . 2 . Sever 8 | . . . . . . 2 1 . 3 . . 2 . Melee Attacks 104 | . . . . . 2 35 14 4 20 1 . 8 20 Impact . | . . . . . . . . . . . . . . Slashing 91 | . . . . . 2 35 11 4 12 1 . 6 20 Piercing . | . . . . . . . . . . . . . . Sneak Attacks 9 | . . . . . . . 4 . 5 . . . . Combat Hostiles 5 | . . . . . . . . . 5 . . . . Follow-up Attacks . | . . . . . . . . . . . . . . Damage Inflicted 6916 | . 227 413 . . 728 1705 716 263 1026 49 . 733 1056 Guns 3254 | . 214 322 . . 508 715 281 84 463 . . 488 179 Cannons . | . . . . . . . . . . . . . . Explosions 234 | . . 64 . . 170 . . . . . . . . Melee 3388 | . . . . . 50 990 435 179 563 49 . 245 877 Ramming 40 | . 13 27 . . . . . . . . . . . Kinetic 883 | . 214 322 . . 118 229 . . . . . . . Thermal 2381 | . . 10 . . 390 486 281 84 463 . . 488 179 Explosive . | . . . . . . . . . . . . . . Electromagnetic 224 | . . 54 . . 170 . . . . . . . . Impact . | . . . . . . . . . . . . . . Slashing 3388 | . . . . . 50 990 435 179 563 49 . 245 877 Piercing . | . . . . . . . . . . . . . . Highest Corruption 11 | . 1 1 1 1 11 11 11 2 2 2 . 4 . Average Corruption 4 | . 1 1 1 1 10 11 7 1 2 1 . 3 . Corruption Purged 7 | . . . . . . . 5 . . 2 . . . Corruption Blocked . | . . . . . . . . . . . . . . Effects 103 | . 3 3 4 . 9 42 16 2 5 3 . 16 . Message Errors 21 | . . . 1 . 2 10 3 . 2 1 . 2 . Matter Fused 29 | . 1 1 2 . 2 9 7 . 2 . . 5 . Heat Flow Errors 14 | . . . . . . 7 2 1 . 1 . 3 . Energy Discharges 16 | . . 1 . . 2 7 1 1 . 1 . 3 . Parts Rejected 1 | . . . . . . 1 . . . . . . . Parts Fused 1 | . . 1 . . . . . . . . . . . Data Loss (minor) 12 | . 1 . . . 2 5 2 . 1 . . 1 . Data Loss (major) 2 | . 1 . . . . 1 . . . . . . . Misfires 4 | . . . 1 . 1 . 1 . . . . 1 . Weapon Failures 3 | . . . . . . 2 . . . . . 1 . Overload Shots . | . . . . . . . . . . . . . . Overflow Damage 172 | . . . . . 20 29 1 . 32 . . . 90 Projectiles . | . . . . . . . . . . . . . . Explosions . | . . . . . . . . . . . . . . Melee 172 | . . . . . 20 29 1 . 32 . . . 90 Knockbacks . | . . . . . . . . . . . . . . Impact . | . . . . . . . . . . . . . . Kinetic . | . . . . . . . . . . . . . . Secondary . | . . . . . . . . . . . . . . Self-Inflicted Damage 16 | . . 16 . . . . . . . . . . . Shots 1 | . . 1 . . . . . . . . . . . Rammed . | . . . . . . . . . . . . . . Targets Rammed 6 | . 2 4 . . . . . . . . . . . Kicked 6 | . 2 4 . . . . . . . . . . . Crushed . | . . . . . . . . . . . . . . Highest Temperature 374 | . 4 17 . . 185 374 118 167 261 105 . 315 216 Average Temperature 95 | . 1 4 . . 65 120 27 83 112 64 . 132 85 Received Heat Transfer 2109 | . . 171 . . 288 270 72 18 315 48 . 474 453 Effects 4 | . . . . . . 1 . . 2 . . 1 . Energy Bleed 2 | . . . . . . 1 . . . . . 1 . Interference 2 | . . . . . . . . . 2 . . . . Siege Activations . | . . . . . . . . . . . . . . Robots Corrupted . | . . . . . . . . . . . . . . Combat Hostiles . | . . . . . . . . . . . . . . Parts Fried 1 | . . . . . 1 . . . . . . . . Impact Corruptions . | . . . . . . . . . . . . . . Robots Melted 1 | . . . . . . 1 . . . . . . . Combat Hostiles 1 | . . . . . . 1 . . . . . . . Parts Melted 4 | . . . . . . 3 . . . . . 1 . Heat Transferred 5361 | . . 50 . . 1147 1238 814 119 608 . . 1115 270 Parts Sabotaged . | . . . . . . . . . . . . . . Parts Stolen . | . . . . . . . . . . . . . . Parts Stripped . | . . . . . . . . . . . . . . Power Chain Reactions 1 | . . 1 . . . . . . . . . . . Alert | -11 -10 -10 -10 -9 -8 -8 -8 -7 -7 -7 -7 -6 -6 ------- Run | Yrd Mat Min Exi Min Mat Gar Mat Fac Low Low Dat Pro Fac Peak Influence 623 | . 216 245 . . 252 623 419 303 . . . . 453 Initial 300 | . . 9 . . . 79 261 72 . . . . 300 Average 200 | . 39 143 . . 84 354 257 110 . . . . 277 Maximum Alert Level 2 | . 1 1 . . 1 2 2 1 . . . . 2 Low Security (%) 53 | 100 96 58 . 100 83 19 30 91 . . . . 31 Level 1 32 | . 3 41 . . 16 41 46 8 . . . . 57 Level 2 13 | . . . . . . 38 23 . . . . . 10 Level 3 . | . . . . . . . . . . . . . . Level 4 . | . . . . . . . . . . . . . . Level 5 . | . . . . . . . . . . . . . . High Security . | . . . . . . . . . . . . . . Max Security . | . . . . . . . . . . . . . . Squads Dispatched 12 | . 1 1 . . 2 . 3 2 . . . . 3 Investigation 4 | . 1 . . . 1 . 2 . . . . . . Extermination 1 | . . . . . . . . 1 . . . . . Reinforcement 5 | . . . . . . . 1 1 . . . . 3 Assault 1 | . . 1 . . . . . . . . . . . Garrison 1 | . . . . . 1 . . . . . . . . Intercept . | . . . . . . . . . . . . . . Searches Triggered 1 | . . . . . . . . . . . . . 1 Construction Impeded . | . . . . . . . . . . . . . . Haulers Reinforced . | . . . . . . . . . . . . . . Active Scanning Responses . | . . . . . . . . . . . . . . Cargo Convoy Interrupts . | . . . . . . . . . . . . . . Stealth | -11 -10 -10 -10 -9 -8 -8 -8 -7 -7 -7 -7 -6 -6 --------- Run | Yrd Mat Min Exi Min Mat Gar Mat Fac Low Low Dat Pro Fac Distress Signals 4 | . 1 . . . . . 2 . . . . . 1 Communications Jammed . | . . . . . . . . . . . . . . Distress Signals . | . . . . . . . . . . . . . . Times Spotted 136 | . 9 9 . . 16 21 15 9 15 1 . 21 20 Peak Tracking Total 7 | . 3 3 . . 4 5 5 5 4 1 . 7 6 Tactical Retreats 16 | . 1 . . . 1 4 . 2 3 . . 2 3 Traps | -11 -10 -10 -10 -9 -8 -8 -8 -7 -7 -7 -7 -6 -6 ------- Run | Yrd Mat Min Exi Min Mat Gar Mat Fac Low Low Dat Pro Fac Traps Triggered 10 | . 1 . . . 1 5 2 1 . . . . . Indirectly . | . . . . . . . . . . . . . . Trap Hack Attempts . | . . . . . . . . . . . . . . Triggered . | . . . . . . . . . . . . . . Disarmed . | . . . . . . . . . . . . . . Reprogrammed . | . . . . . . . . . . . . . . Reused . | . . . . . . . . . . . . . . Traps Extracted . | . . . . . . . . . . . . . . Installed . | . . . . . . . . . . . . . . Triggered . | . . . . . . . . . . . . . . Machines | -11 -10 -10 -10 -9 -8 -8 -8 -7 -7 -7 -7 -6 -6 ---------- Run | Yrd Mat Min Exi Min Mat Gar Mat Fac Low Low Dat Pro Fac Machines Disabled 11 | . . 2 . . 4 4 . . . . . 1 . Max in Single Turn 2 | . . . . . 2 1 . . . . . 1 . Garrison Relay 4 | . . . . . . 4 . . . . . . . Machines Repaired . | . . . . . . . . . . . . . . Machines Dismantled . | . . . . . . . . . . . . . . Machines Sabotaged . | . . . . . . . . . . . . . . Overloaded Fab Kills . | . . . . . . . . . . . . . . Hacking | -11 -10 -10 -10 -9 -8 -8 -8 -7 -7 -7 -7 -6 -6 --------- Run | Yrd Mat Min Exi Min Mat Gar Mat Fac Low Low Dat Pro Fac Machines Accessed 32 | . 6 . 4 . 5 3 5 2 . 1 4 . 2 Terminals 21 | . 6 . . . 4 3 5 1 . . . . 2 Fabricators 1 | . . . . . . . . 1 . . . . . Repair Stations . | . . . . . . . . . . . . . . Recycling Units . | . . . . . . . . . . . . . . Scanalyzers . | . . . . . . . . . . . . . . Garrison Access 1 | . . . . . 1 . . . . . . . . Total Hacks 135 | . 21 . 27 . 22 9 16 9 . 1 26 . 4 Successful 83 | . 8 . 27 . 7 1 8 4 . 1 26 . 1 Failed 52 | . 13 . . . 15 8 8 5 . . . . 3 Catastrophic 9 | . 2 . . . 2 1 2 1 . . . . 1 Database Lockouts . | . . . . . . . . . . . . . . Manual 72 | . 25 . 1 . 20 4 16 4 . . . 1 1 Terminals 73 | . 21 . . . 20 9 16 3 . . . . 4 Fabricators 6 | . . . . . . . . 6 . . . . . Repair Stations . | . . . . . . . . . . . . . . Recycling Units . | . . . . . . . . . . . . . . Scanalyzers . | . . . . . . . . . . . . . . Garrison Access 2 | . . . . . 2 . . . . . . . . Terminal Hacks 69 | . 4 . 27 . 1 1 6 2 . 1 26 . 1 Record 39 | . . . 26 . . . 2 . . . 11 . . Part Schematic 9 | . . . . . . . . . . . 9 . . Robot Schematic 3 | . . . . . . . . . . . 3 . . Prototype ID Bank 4 | . . . . . . . . 1 . . 3 . . Open Door 1 | . . . . . . . . . . 1 . . . Open DSF 1 | . . . . . . . . . . . . . 1 Branch Access Points 2 | . . . . . . . 1 1 . . . . . Terminal Index 3 | . 1 . . . 1 . 1 . . . . . . Unreport Threat 1 | . . . . . . . 1 . . . . . . Recall Investigation 2 | . 1 . . . . . 1 . . . . . . Hauler Manifests 2 | . 2 . . . . . . . . . . . . Patrol Navigation 1 | . . . . . . 1 . . . . . . . Derelict Proto ID Bank 1 | . . . 1 . . . . . . . . . . Fabricator Hacks 1 | . . . . . . . . 1 . . . . . Network Status 1 | . . . . . . . . 1 . . . . . Repair Station Hacks . | . . . . . . . . . . . . . . Recycling Unit Hacks . | . . . . . . . . . . . . . . Scanalyzer . | . . . . . . . . . . . . . . Garrison Access Hacks 1 | . . . . . 1 . . . . . . . . Unlock Access 1 | . . . . . 1 . . . . . . . . Unauthorized Hacks 12 | . 4 . . . 5 . 2 1 . . . . . Terminals 11 | . 4 . . . 5 . 2 . . . . . . Track 2 | . 1 . . . 1 . . . . . . . . Assimilate 1 | . . . . . . . 1 . . . . . . Botnet 7 | . 3 . . . 3 . 1 . . . . . . Operators 1 | . . . . . 1 . . . . . . . . Fabricators 1 | . . . . . . . . 1 . . . . . Fabnet 1 | . . . . . . . . 1 . . . . . Repair Stations . | . . . . . . . . . . . . . . Recycling Units . | . . . . . . . . . . . . . . Scanalyzers . | . . . . . . . . . . . . . . Garrison Access . | . . . . . . . . . . . . . . Data Cores Recovered 1 | . . . . . 1 . . . . . . . . Used . | . . . . . . . . . . . . . . Hacking Detections 21 | . 5 . . . 4 3 5 2 . . . . 2 Full Trace Events 1 | . 1 . . . . . . . . . . . . Feedback Events 1 | . 1 . . . . . . . . . . . . Corruption 1 | . 1 . . . . . . . . . . . . Feedback Blocked . | . . . . . . . . . . . . . . Robot Schematics Acquired 3 | . . . . . . . . . . . 3 . . Robots Built . | . . . . . . . . . . . . . . Authchips . | . . . . . . . . . . . . . . Time . | . . . . . . . . . . . . . . Total Robot Build Rating . | . . . . . . . . . . . . . . Part Schematics Acquired 9 | . . . . . . . . . . . 9 . . Parts Built . | . . . . . . . . . . . . . . Authchips . | . . . . . . . . . . . . . . Time . | . . . . . . . . . . . . . . Total Part Build Rating . | . . . . . . . . . . . . . . Parts Repaired . | . . . . . . . . . . . . . . Time . | . . . . . . . . . . . . . . Parts Recycled . | . . . . . . . . . . . . . . Recycled Matter . | . . . . . . . . . . . . . . Retrieved Matter . | . . . . . . . . . . . . . . Retrieved Components . | . . . . . . . . . . . . . . Parts Scanalyzed . | . . . . . . . . . . . . . . Part Schematics Acquired . | . . . . . . . . . . . . . . Parts Damaged . | . . . . . . . . . . . . . . Bothacking | -11 -10 -10 -10 -9 -8 -8 -8 -7 -7 -7 -7 -6 -6 ------------ Run | Yrd Mat Min Exi Min Mat Gar Mat Fac Low Low Dat Pro Fac Used RIF Installer 1 | . . . . . . 1 . . . . . . . Robots Hacked 6 | . . . . . . . 1 . 1 . . 3 1 Non-combat 1 | . . . . . . . 1 . . . . . . Combat 5 | . . . . . . . . . 1 . . 3 1 Robot Hacks Applied 6 | . . . . . . . 1 . 3 . . 2 . no_distress 1 | . . . . . . . 1 . . . . . . link_fov 1 | . . . . . . . . . 1 . . . . reboot_system 1 | . . . . . . . . . 1 . . . . go_dormant 1 | . . . . . . . . . 1 . . . . overwrite_iff 1 | . . . . . . . . . . . . 1 . streamctrl_high 1 | . . . . . . . . . . . . 1 . Relay Couplers Released 14 | . . . . . . 14 . . . . . . . Machine Destruction 14 | . . . . . . 14 . . . . . . . Attached 2 | . . . . . . . . . 1 . . 1 . Fabnet Peak Effective % 3 | . . . . . . . . . . . . 3 3 Autooverrided 2 | . . . . . . . . . . . . 1 1 Robots Rewired . | . . . . . . . . . . . . . . Allies Hacked . | . . . . . . . . . . . . . . Hacks Repelled . | . . . . . . . . . . . . . . Allies | -11 -10 -10 -10 -9 -8 -8 -8 -7 -7 -7 -7 -6 -6 -------- Run | Yrd Mat Min Exi Min Mat Gar Mat Fac Low Low Dat Pro Fac Total Allies 8 | . . 2 . . . . 1 . . . . 4 1 Largest Group 2 | . . 1 . . . . 1 . . . . 2 1 Highest-Rated Group 143 | . . 31 . . . . 10 . . . . 143 96 Highest-Rated Ally 96 | . . 31 . . . . 10 . . . . 96 96 Total Orders 1 | . . . . . . . . . . . . 1 . AID 1 | . . . . . . . . . . . . 1 . Ally Attacks 73 | . . 19 . . . . . . . . . 45 9 Total Damage 1730 | . . 266 . . . . . . . . . 1225 239 Kills 13 | . . 4 . . . . . . . . . 7 2 Allies Corrupted . | . . . . . . . . . . . . . . Allies Melted . | . . . . . . . . . . . . . . Intel | -11 -10 -10 -10 -9 -8 -8 -8 -7 -7 -7 -7 -6 -6 ------- Run | Yrd Mat Min Exi Min Mat Gar Mat Fac Low Low Dat Pro Fac Robot Analysis Total . | . . . . . . . . . . . . . . Derelict Logs Recovered 5 | . . . . 1 . . . . 1 2 . 1 . Drone Launches . | . . . . . . . . . . . . . . Drone Recoveries . | . . . . . . . . . . . . . . Exploration | -11 -10 -10 -10 -9 -8 -8 -8 -7 -7 -7 -7 -6 -6 ------------- Run | Yrd Mat Min Exi Min Mat Gar Mat Fac Low Low Dat Pro Fac Turns Passed 7388 | 94 477 619 367 93 490 1107 636 488 703 653 96 978 587 Spaces Moved 5069 | 68 334 440 304 77 263 630 414 349 492 521 79 704 394 Core 8 | 2 . . . . . 2 . . . . . 4 . Treads 106 | . . . . . . 102 4 . . . . . . Legs 4955 | 66 334 440 304 77 263 526 410 349 492 521 79 700 394 Wheels . | . . . . . . . . . . . . . . Hover . | . . . . . . . . . . . . . . Flight . | . . . . . . . . . . . . . . Fastest Speed 50 | 50 120 120 120 120 120 120 120 122 122 122 122 105 105 Average Speed 121 | 117 120 120 120 120 120 129 120 122 122 122 122 117 116 Slowest Speed 550 | 120 120 120 120 120 120 350 160 122 122 122 122 550 185 Overloaded Moves . | . . . . . . . . . . . . . . Propulsion Burnouts . | . . . . . . . . . . . . . . Robots Hopped . | . . . . . . . . . . . . . . Cave-ins Triggered . | . . . . . . . . . . . . . . Exploration Rate (%) 45 | 4 61 62 69 16 26 79 35 12 64 60 68 71 10 Regions Visited 13 Branch Regions 7 Pre-discovered Areas 3 | . . . . . . . . . . 1 1 1 . Known Exits Taken 4 | . . . . . 1 . 1 1 1 . . . . Unknown Exits Taken 8 | 1 1 1 1 1 . . . . . 1 1 1 . Scrap Searched 10 | . . 1 . . . . . . 2 3 . 4 . Spaces Dug 5 | . . . . . 1 2 2 . . . . . . Terrain Destroyed 9 | . . 4 . . 1 2 2 . . . . . . Melee 5 | . . . . . 1 2 2 . . . . . . Projectile . | . . . . . . . . . . . . . . AOE 4 | . . 4 . . . . . . . . . . . Terrain Rammed . | . . . . . . . . . . . . . . Walls Destroyed . | . . . . . . . . . . . . . . Machines Disabled . | . . . . . . . . . . . . . . Actions | -11 -10 -10 -10 -9 -8 -8 -8 -7 -7 -7 -7 -6 -6 --------- Run | Yrd Mat Min Exi Min Mat Gar Mat Fac Low Low Dat Pro Fac Total 5912 | 79 382 495 307 77 381 817 510 400 555 537 78 804 490 Wait 339 | 4 26 15 . . 65 52 32 26 23 3 . 32 61 Move 5056 | 67 333 439 303 76 263 628 413 348 491 520 78 703 394 Hop . | . . . . . . . . . . . . . . Pick Up 33 | 2 4 2 1 . 4 6 5 2 . . . 6 1 Fast Attach 57 | 6 1 1 . . 5 12 7 5 . 5 . 9 6 Attach 24 | . . . . 1 3 5 2 2 . 1 . 9 1 Detach 20 | . . . . . . 6 4 3 . 3 . 2 2 Swap 57 | . 1 7 . . 8 17 8 3 6 1 . 5 1 Drop 37 | . . 6 3 . 4 2 8 3 1 2 . 8 . Fire 154 | . 15 21 . . 27 31 17 4 13 . . 22 4 Melee 104 | . . . . . 2 35 14 4 20 1 . 8 20 Ram . | . . . . . . . . . . . . . . Kick 6 | . 2 4 . . . . . . . . . . . Crush . | . . . . . . . . . . . . . . Escape Stasis 23 | . . . . . . 23 . . . . . . . Rewire 2 | . . . . . . . . . 1 1 . . . Trap . | . . . . . . . . . . . . . . Miscellaneous . | . . . . . . . . . . . . . . Route ------- -11/Scrapyard -10/Materials (discovered 3 exits: [*Mat] / [*Min x2]) -10/Mines (discovered 2 exits: [*Mat] / *Exi) -10/Exiles (discovered 2 exits: [*Min x2]) -9/Mines -8/Materials (discovered 2 exits: Fac / Gar) -8/Garrison (discovered 3 exits: *Mat x3) -8/Materials -7/Factory (discovered 4 exits: Sto x2 / *Low x2) -7/Lower Caves -7/Lower Caves -7/Data Miner -6/Proximity Caves -6/Factory History --------- Turn | Location | Event 8 | -11/Scrapyard | Discovered new exit (range 16) 95 | -11/Scrapyard | Entered Materials 185 | -10/Materials | Discovered new exit (range 14) 312 | -10/Materials | Build established: Mutant 401 | -10/Materials | Discovered new exit (range 13) 507 | -10/Materials | Discovered new exit (range 16) 572 | -10/Materials | Entered Mines 575 | -10/Mines | Received a Mining Laser from a helpful Derelict 841 | -10/Mines | Found DCF Scrap (14 items) 884 | -10/Mines | A weapon hastily lodged in a ceiling crevice suddenly fell to the ground 947 | -10/Mines | Discovered new exit (range 8) 975 | -10/Mines | Deemed a non-threat by the Exiles lab entrance 975 | -10/Mines | Discovered new exit (range 6) 1098 | -10/Mines | Met a Derelict testing a Signal Generator 1132 | -10/Mines | YI-UF0 nonchalantly dropped a Grenade Launcher on the ground 1191 | -10/Mines | Entered Exiles 1209 | -10/Exiles | Discovered new exit (range 15) 1240 | -10/Exiles | Met 8R-AWN 1258 | -10/Exiles | Met EX-HEX 1340 | -10/Exiles | Met EX-BIN 1356 | -10/Exiles | Aligned with FarCom system 1357 | -10/Exiles | Given EX-Vault access code 1417 | -10/Exiles | Opened EX-Vault 1423 | -10/Exiles | Found Longsword +1 1462 | -10/Exiles | Warned to stay clear of 0b10 Research branches 1467 | -10/Exiles | Exiles lab attacked by MAIN.C 1548 | -10/Exiles | Discovered new exit (range 10) 1558 | -10/Exiles | Left Exiles lab with Longsword +1 1558 | -10/Exiles | Entered Mines 1571 | -9/Mines | Assembled infested the area 1576 | -9/Mines | Assisted by a Guerilla fighting off Assembled 1625 | -9/Mines | Discovered new exit (range 6) 1651 | -9/Mines | Entered Materials 1651 | -8/Materials | Evolved 4 slots: Propulsion x2, Utility x2 1652 | -8/Materials | Identified exit to Factory 1935 | -8/Materials | System corruption reached 10% 2103 | -8/Materials | Garrison activated, responded to threat 2141 | -8/Materials | Identified exit to Garrison 2141 | -8/Materials | Entered Garrison 2177 | -8/Garrison | Triggered checkpoint 2313 | -8/Garrison | Triggered checkpoint 2340 | -8/Garrison | Discovered new exit (range 10) 2405 | -8/Garrison | Build established: Scavenger-Mutant 2643 | -8/Garrison | Lost 4 parts (3n1u) 2692 | -8/Garrison | Garrison Relay disabled 2807 | -8/Garrison | Triggered checkpoint 2821 | -8/Garrison | Garrison Relay disabled 2857 | -8/Garrison | Discovered new exit (range 10) 2870 | -8/Garrison | Garrison Relay disabled 2949 | -8/Garrison | Triggered checkpoint 3113 | -8/Garrison | Triggered checkpoint 3127 | -8/Garrison | Installed Relay Interface Framework 3145 | -8/Garrison | Core integrity fell below 50% 3197 | -8/Garrison | Garrison Relay disabled 3226 | -8/Garrison | Discovered new exit (range 13) 3248 | -8/Garrison | Entered Materials 3821 | -8/Materials | Build established: Mutant 3860 | -8/Materials | Discovered exit to Factory (range 15) 3884 | -8/Materials | Entered Factory 3884 | -7/Factory | Evolved 2 slots: Utility x2 4136 | -7/Factory | Identified exit to Storage 4136 | -7/Factory | Identified exit to Lower Caves 4338 | -7/Factory | Build established: Hacker-Mutant 4372 | -7/Factory | Entered Lower Caves 4807 | -7/Lower Caves | Identified exit to Lower Caves 5075 | -7/Lower Caves | Entered another Lower Caves area 5078 | -7/Lower Caves | Attracted the attention of an 0b10 checkpoint 5436 | -7/Lower Caves | Discovered new exit (range 6) 5469 | -7/Lower Caves | Learned Factory terminal intel 5594 | -7/Lower Caves | Build established: Scavenger-Mutant 5728 | -7/Lower Caves | Entered Data Miner 5728 | -7/Data Miner | Discovered new exit (range 6) 5752 | -7/Data Miner | Met Data Miner 5775 | -7/Data Miner | Learned location of Section 7 (-2) 5775 | -7/Data Miner | Acquired the access code to Warlord's prototype stash 5797 | -7/Data Miner | Received God Mode back door access code from Data Miner 5824 | -7/Data Miner | Entered Proximity Caves 5829 | -6/Proximity Caves | Acquired the password to a Derelict Tinkerer's latest research 5839 | -6/Proximity Caves | Found Prototype Special Weapon 5845 | -6/Proximity Caves | Identified Molecular Deconstructor 5920 | -6/Proximity Caves | Build established: Hacker-Mutant 5997 | -6/Proximity Caves | Spotter reported a threat 6105 | -6/Proximity Caves | Caught by Unaware searching for contraband prototypes 6129 | -6/Proximity Caves | Lost 3 parts (1p2n) 6187 | -6/Proximity Caves | Core integrity fell below 50% 6195 | -6/Proximity Caves | Escorted by Enhanced Grunt 6221 | -6/Proximity Caves | Lost 10 parts (2p4n3u1w) 6392 | -6/Proximity Caves | Core integrity fell below 20% 6469 | -6/Proximity Caves | Spotter reported a threat 6617 | -6/Proximity Caves | Discovered new exit (range 10) 6802 | -6/Proximity Caves | Entered Factory 6802 | -6/Factory | Accompanied by 1 ally 6802 | -6/Factory | Evolved 2 slots: Power x1, Utility x1 6803 | -6/Factory | Loaded intel: 27 terminal locations 6867 | -6/Factory | Build established: Scavenger-Mutant 6944 | -6/Factory | Identified exit to DSF 7040 | -6/Factory | Lost 4 parts (1p1n2u) 7152 | -6/Factory | Search patrols dispatched 7389 | -6/Factory | Self-destructed Last Messages --------------- 07137_ Plasma Rifle destroyed. 07138_ Fabnet algorithm triggers G-50 Soldier IFF filter rewrite. 07152_ ALERT: Heightened foreign activity detected, multiple search patrols dispatched. 07166_ Critical hit (Burn: +37). 07179_ Destroyed Carbon-fiber Leg. 07179_ G-50 Soldier destroyed. 07182_ Acquired Adv. Heat Sink. 07185_ Acquired Lgt. Angular Momentum Engine. 07186_ Acquired 20 matter. 07238_ Acquired Unknown Ballistic Cannon. 07238_ Identified Hvy. Flak Cannon. 07316_ K-01 Serf collects debris. 07340_ ALERT: Suspicious intruders detected, dispatching Specialist reinforcements to area. 07388_ Critical hit (Burn: +37). 07388_ Penetrated by Slug. 07388_ System Shield destroyed. 07389_ U-05 Engineer builds a Wall. Map ----- +----------------------------------------------------+ | ?????????????????????????????????????????????????? | | ?????????????????????????????????????????????????? | | ?????????????????????????????????????????????????? | | ?????????????????????????????????????????????????? | | ####?????????????????????????????????????????????? | | ######### ????????????????????????????????????? | | ???????????????????????????????????? | | ???????????????????????????????????? | | ???????????????????????????????????? | | ???????????????????????????????????? | | ????????? ???????????????????????? | | ! ######### ???????? ???????????????????????? | | ###???????????????? ???????????????????????? | | ###########????????# ???????????????????????? | | # """"" #????????# k#??????????????????????? | | # """"" #????????# #??????????????????????? | | # """ % #????????# #???##?????????????????? | | #! #????????# #??? ?????????????????? | | =#%! #??? #??# #?? ??????????????????? | | [+% [ #?? #??# #? ???" ??????????????? | | *#%[!! # #??#u #? ???"" ??????????????? | | ########### #??#R k # ?? ??????????????? | | """ #??# #??# # ? """ ??????????????? | | ""T"" #??# #??# g +? """ ??????????????? | | "" "" #### #### u u# """ ""????????????? | | T# ## @# #?????????? | | !!= # ## %# = #?????????? | | ! !==## kA uk #?? #?????????? | | !==##! % #???? +?????????? | | ## #??????#######?????????? | | """ !%% #??????????????????????? | | ""%% ## g #??????????????????????? | | """ %## ###/##########????????????????? | | #? H # g #????????????????? | | ]#?### ###### #????????????????? | | #???# #????# """ """ #????????????????? | | #########???# #????# """ """??????????????????? | | #????# #????# x """ """ #????????????????? | | """#????# #????# #????????????????? | | ! """#????# #????#x """ """ #????????????????? | | """###### ###### """ """??????????????????? | | + + """ """ #????????????????? | | ########## # #????????????????? | | ?????????# # ] #????????????????? | | ?????????# + #????????????????? | | ?????????# ######################????????????????? | | ########## #?????????????????????????????????????? | | #?????????????????????????????????????? | | ############?????????????????????????????????????? | | ?????????????????????????????????????????????????? | +----------------------------------------------------+ Best States ------------- Heat Dissipation 62 Energy Generation 29 Energy Capacity 340 Matter Stores 300 Matter Capacity 300 Sight Range 16 Terrain Scan Density 10 ECM Strength 1 Additional Mass Support 9 Armor Coverage 600 Resistance: KI 50 Resistance: TH 20 Resistance: EX 20 Resistance: EM 35 Resistance: I 20 Resistance: S 20 Resistance: P 20 Evasion (%) 55 Recoil Reduction 2 Offensive Hacking 10 Defensive Hacking 10 Relay Coupler Types 1 Relay Coupler Value 22 Item Schematics ----------------- Combat Drone Bay | -7/Data Miner | Free Lgt. Regenerative Plating | -7/Data Miner | Free Cld. Cesium-ion Thruster | -7/Data Miner | Free Exp. Targeting Computer | -7/Data Miner | Free Antimatter Cannon | -7/Data Miner | Free Antigrav System | -7/Data Miner | Free Adv. Hacking Suite | -7/Data Miner | Free Wave Gun | -7/Data Miner | Free Cloaking Device | -7/Data Miner | Free Robot Schematics ------------------ E-15 Imp | -7/Data Miner | Free R-10 Processor | -7/Data Miner | Free A-15 Conveyor | -7/Data Miner | Free Fabricated ------------ Nothing Alien Tech Used ----------------- None Achievements -------------- None Challenges ------------ None Game ------ Seed WarpImprinterShockpuncher Manual? 0 Play Time 01:18:59 Cumulative 88.0 hours Start 2024.10.15 @ 13:31:08 End 2024.10.15 @ 15:33:55 Sessions 1 Manual Loads 0 Difficulty Adventurer Special Mode None Game No. 45 Rogue 0 Adventurer 45 Explorer 0 Win Type - Total 4 Types 4/0/0/0/0/0/0/0/0 Lore% 45 Gallery% 54 Achievement% 46 Wizard Run 0 Options --------- Layout 1 ASCII 0 Keyboard 1 Movement Numpad Keybinds 0 Fullscreen 1 Font 24/Terminus Map View 50x35 Zoom Use 0% Tactical HUD 1 Map Filters NONE Filters NONE Steam 1 RUN: 32513bac-e733-410f-9d96-9cc65476b092